bitfinex/quotes_SOLUSD_20241209
["timestamp","ask_amount","ask_price","bid_price","bid_amount"]
[1733755913734,0.81072691,231.32,231.19,20.12549]
[1733755914042,0.81072691,231.32,231.21,0.12549]
[1733755914336,1.5243,231.31,231.12,21.57082031]
[1733755914519,0.81079349,231.3,231.15,0.12549]
[1733755914855,0.81079349,231.3,231.15,0.6067295]
[1733755915013,1.5243,231.31,231.17,0.12549]
[1733755915213,1.5243,231.31,231.19,0.12549]
[1733755915527,1.5243,231.31,231.21,0.12549]
[1733755915718,1.5243,231.31,231.24,23.902374]
[1733755916226,1.5243,231.31,231.26,23.902374]
[1733755916429,1.5608,231.37,231.28,23.902374]
[1733755917147,2.37127428,231.37,231.28,23.902374]
[1733755917647,1.5608,231.37,231.28,23.902374]
[1733755918218,1.5608,231.37,231.3,0.12549]
[1733755918447,1.5608,231.37,231.3,23.902374]
[1733755918839,1.5608,231.37,231.32,0.12549]
[1733755919553,1.5608,231.37,231.32,23.902374]
[1733755920043,1.5608,231.37,231.32,0.12549]
[1733755920441,1.5608,231.37,231.32,23.902374]
[1733755921030,0.5252676,231.41,231.34,23.902374]
[1733755921228,0.5252676,231.41,231.35,24.25685558]
[1733755921635,0.5252676,231.41,231.36,0.12549]
[1733755921835,0.5252676,231.41,231.38,0.12549]
[1733755922029,0.5252676,231.41,231.38,23.902374]
[1733755924454,0.5252676,231.41,231.25,21.57082031]
[1733755924623,0.5252676,231.41,231.26,0.48032919]
[1733755924832,0.5252676,231.41,231.28,0.12549]
[1733755925028,0.5252676,231.41,231.3,0.12549]
[1733755925653,0.5252676,231.41,231.31,0.12549]
[1733755925857,1.33566755,231.41,231.28,20.0]
[1733755926345,1.33566755,231.41,231.29,0.12549]
[1733755926566,6.481,231.4,231.29,0.12549]
[1733755926727,0.81039448,231.39,231.29,0.12549]
[1733755927161,0.81039448,231.39,231.29,23.902374]
[1733755927662,6.481,231.4,231.29,23.902374]
[1733755927957,7.29139894,231.4,231.29,23.902374]
[1733755928951,6.481,231.4,231.29,23.902374]
[1733755929158,0.81037486,231.39,231.29,23.902374]
[1733755929533,6.481,231.4,231.29,23.902374]
[1733755930069,7.29135262,231.4,231.29,23.902374]
[1733755930368,6.481,231.4,231.29,23.902374]
[1733755931066,6.481,231.4,231.29,45.47319431]
[1733755931272,6.481,231.4,231.31,23.902374]
[1733755931868,0.81037619,231.39,231.26,21.57082031]
[1733755932361,6.481,231.4,231.27,0.48050788]
[1733755932539,6.481,231.4,231.28,0.12549]
[1733755932746,6.481,231.4,231.2,11.0808]
[1733755932747,0.81036066,231.39,231.21,0.48037829]
[1733755932935,1.5451,231.38,231.19,32.38402031]
[1733755933134,1.5451,231.32,231.13,21.57082031]
[1733755933359,0.81081458,231.31,231.15,21.57082031]
[1733755933944,0.81081458,231.31,231.16,0.48130557]
[1733755934268,1.5451,231.32,231.22,0.12549]
[1733755935245,1.5451,231.32,231.22,24.027864]
[1733755937655,1.5451,231.32,231.21,22.0517525]
[1733755937656,1.5451,231.32,231.24,24.027864]
[1733755937859,1.5451,231.32,231.26,0.12549]
[1733755938094,1.5451,231.32,231.26,23.902374]
[1733755939500,20.0,231.27,231.04,19.65866124]
[1733755939658,2.38419504,231.26,231.1,21.57082031]
[1733755939859,23.46519504,231.26,231.08,21.57082031]
[1733755940077,23.46519504,231.26,231.12,21.57082031]
[1733755940078,2.38419504,231.26,231.12,21.57082031]
[1733755940283,2.38419504,231.26,231.13,0.12549]
[1733755941184,1.5732,231.26,231.15,0.12549]
[1733755941788,1.5732,231.26,231.15,0.25098]
[1733755941998,1.5732,231.26,231.15,24.027864]
[1733755942306,1.5732,231.26,231.15,23.902374]
[1733755942454,0.81083868,231.25,231.14,0.12549]
[1733755942776,0.81083868,231.25,231.12,0.12549]
[1733755942988,0.81083868,231.25,231.12,0.25098]
[1733755943485,0.81083868,231.25,231.12,21.82180031]
[1733755943880,0.81083868,231.25,231.14,0.25098]
[1733755945589,0.81083868,231.25,231.14,0.12549]
[1733755951478,0.81083868,231.25,231.12,24.027864]
[1733755953299,0.81083868,231.25,231.12,0.12549]
[1733755954390,0.81083868,231.25,231.07,13.48764866]
[1733755954588,20.0,231.21,231.03,13.48764866]
[1733755954891,1.5704,231.23,231.13,13.48764866]
[1733755955100,1.5704,231.23,231.16,0.12549]
[1733755955293,1.5704,231.23,231.18,0.12549]
[1733755955901,1.5704,231.23,231.14,0.12549]
[1733755956096,1.5704,231.23,231.16,23.902374]
[1733755956491,1.5704,231.23,231.18,24.027864]
[1733755956690,1.5704,231.23,231.2,0.12549]
[1733755957010,1.5704,231.23,231.2,23.902374]
[1733755957514,1.5704,231.23,231.18,24.50904576]
[1733755957896,1.5704,231.23,231.18,24.027864]
[1733755958414,1.5704,231.23,231.18,23.902374]
[1733755958913,1.5704,231.23,231.16,24.027864]
[1733755960519,1.5704,231.23,231.14,24.50923428]
[1733755961182,1.5704,231.23,231.16,24.027864]
[1733755961583,1.5704,231.23,231.16,0.25098]
[1733755961795,1.5704,231.23,231.18,0.12549]
[1733755962395,1.5704,231.23,231.16,24.027864]
[1733755962723,1.5704,231.23,231.16,0.12549]
[1733755963224,1.5704,231.23,231.15,0.12549]
[1733755963407,1.5704,231.23,231.09,13.48764866]
[1733755963596,1.5704,231.23,231.07,13.96917505]
[1733755963597,0.81111144,231.22,231.07,13.96917505]
[1733755963799,6.121,231.21,231.09,13.48764866]
[1733755964100,6.121,231.21,231.11,13.48764866]
[1733755964312,6.121,231.21,231.16,0.12549]
[1733755964724,1.5704,231.23,231.16,0.12549]
[1733755965099,1.5704,231.23,231.11,13.48764866]
[1733755965416,0.81099529,231.22,231.13,0.12549]
[1733755965587,0.81099529,231.22,231.11,13.48764866]
[1733755965794,0.81099529,231.22,231.09,13.48764866]
[1733755966323,0.81099529,231.22,231.11,13.48764866]
[1733755967189,0.81099529,231.22,231.11,0.12549]
[1733755967620,0.81099529,231.22,231.11,13.61313866]
[1733755967927,0.81099529,231.22,231.1,23.776884]
[1733755968496,0.81099529,231.22,231.11,0.12549]
[1733755968719,0.81099529,231.22,231.13,0.12549]
[1733755968919,0.81099529,231.22,231.1,23.776884]
[1733755969299,0.81099529,231.22,231.13,23.902374]
[1733755970454,0.81099529,231.22,231.12,13.61313866]
[1733755970631,1.5704,231.23,231.17,23.902374]
[1733755970945,1.5704,231.23,231.17,0.12549]
[1733755971123,1.5704,231.23,231.16,0.12549]
[1733755971632,1.5704,231.23,231.18,0.12549]
[1733755972326,1.5704,231.23,231.15,23.776884]
[1733755972539,1.5704,231.23,231.13,23.776884]
[1733755972750,0.81101204,231.22,231.1,13.48764866]
[1733755973634,0.81101204,231.22,231.11,0.12549]
[1733755974014,1.5704,231.23,231.15,0.12549]
[1733755974959,1.5704,231.23,231.14,0.12549]
[1733755975119,0.81105956,231.22,231.13,23.776884]
[1733755975849,0.81105956,231.22,231.05,0.4816541]
[1733755975850,0.81105956,231.22,231.11,23.776884]
[1733755976915,0.81105956,231.22,231.09,23.902374]
[1733755977143,0.81105956,231.22,231.08,13.48764866]
[1733755977358,6.2439,231.21,231.06,13.48764866]
[1733755977566,0.81124426,231.2,231.06,13.48764866]
[1733755978954,0.81124426,231.2,231.07,0.12549]
[1733755979352,0.81124426,231.2,231.07,23.902374]
[1733755979547,0.81124426,231.2,231.06,0.12549]
[1733755979756,0.81124426,231.2,231.08,23.902374]
[1733755979952,6.3748,231.16,230.95,10.8245]
[1733755980160,0.81148885,231.15,230.99,13.48764866]
[1733755980866,20.0,231.13,230.97,13.48764866]
[1733755981156,20.0,231.13,230.93,0.4827074]
[1733755981157,0.8115401,231.12,231.0,0.12549]
[1733755981357,0.8115401,231.12,230.99,13.48764866]
[1733755981871,0.8115401,231.12,230.98,0.12549]
[1733755982365,0.8115401,231.12,231.0,0.12549]
[1733755982576,0.8115401,231.12,231.0,23.902374]
[1733755982876,0.8115401,231.12,230.98,23.902374]
[1733755983041,1.0817,231.11,230.97,13.48764866]
[1733755983237,1.6598,231.09,230.86,1.5549]
[1733755983552,1.6598,231.06,230.9,13.48764866]
[1733755983757,20.0,231.02,230.88,13.48764866]
[1733755983943,1.6598,231.0,230.88,13.48764866]
[1733755984144,0.8119528,230.99,230.86,13.48764866]
[1733755984451,0.8119528,230.99,230.79,0.48356258]
[1733755984452,6.2929,230.98,230.79,0.48356258]
[1733755984677,0.81204584,230.97,230.82,13.48764866]
[1733755984897,0.81204584,230.97,230.86,13.48764866]
[1733755985301,0.81204584,230.97,230.88,13.48764866]
[1733755985509,0.81204584,230.97,230.89,0.12549]
[1733755986285,0.81204584,230.97,230.87,23.776884]
[1733755986623,0.81204584,230.97,230.85,23.776884]
[1733755986782,0.81204584,230.97,230.82,13.48764866]
[1733755986983,1.89444584,230.97,230.82,13.48764866]
[1733755987282,1.89444584,230.97,230.75,12.81889409]
[1733755987283,1.6081,230.96,230.8,13.48764866]
[1733755987589,20.8121513,230.95,230.8,13.48764866]
[1733755987795,20.8121513,230.95,230.81,0.12549]
[1733755987997,20.8121513,230.95,230.8,13.48764866]
[1733755988311,1.0825,230.94,230.8,13.48764866]
[1733755988517,0.81220933,230.93,230.8,13.48764866]
[1733755989242,0.81220933,230.93,230.81,0.12549]
[1733755989528,0.81220933,230.93,230.85,0.12549]
[1733755989698,2.42008732,230.96,230.87,23.902374]
[1733755990092,2.42008732,230.96,230.87,0.12549]
[1733755990298,2.42008732,230.96,230.85,23.776884]
[1733755990529,2.42008732,230.96,230.8,13.48764866]
[1733755990827,20.0,230.95,230.83,0.12549]
[1733755991019,0.81212855,230.94,230.83,0.12549]
[1733755991419,0.81212855,230.94,230.81,0.12549]
[1733755991803,0.81212855,230.94,230.83,0.12549]
[1733755992005,1.6081,230.96,230.87,23.902374]
[1733755992199,0.81193733,230.95,230.87,23.902374]
[1733755992444,0.81196039,230.95,230.87,23.776884]
[1733755992729,0.81196039,230.95,230.85,23.902374]
[1733755993096,0.81196039,230.95,230.87,23.902374]
[1733755993292,0.81196039,230.95,230.87,23.776884]
[1733755993496,0.81196039,230.95,230.86,23.776884]
[1733755993800,0.81196039,230.95,230.87,0.12549]
[1733755995697,20.0,230.91,230.69,10.8366]
[1733755995901,6.2718,230.88,230.72,13.48764866]
[1733755996096,0.81245313,230.87,230.72,13.48764866]
[1733755996334,20.0,230.85,230.7,13.48764866]
[1733755996547,0.81260231,230.84,230.64,10.8392]
[1733755996712,1.51,230.83,230.67,13.48764866]
[1733755996906,0.81264426,230.82,230.67,13.48764866]
[1733755999813,1.6552,230.9,230.87,23.776884]
[1733755999965,1.6552,230.9,230.88,13.48764866]
[1733756000465,1.6552,230.9,230.89,23.776884]
[1733756001454,1.6552,230.9,230.86,21.63100853]
[1733756001455,1.6552,230.9,230.87,23.776884]
[1733756001824,0.81211479,230.89,230.85,23.776884]
[1733756002237,2.46739486,230.9,230.84,21.63100853]
[1733756002425,2.46739486,230.9,230.85,23.776884]
[1733756003957,2.46739486,230.9,230.83,23.776884]
[1733756004169,2.46739486,230.9,230.86,21.63100853]
[1733756004473,6.3795,230.97,230.89,23.776884]
[1733756004681,0.81198505,230.96,230.91,23.776884]
[1733756004984,6.3795,230.97,230.92,21.63100853]
[1733756005139,1.5983,230.98,230.95,23.776884]
[1733756006182,6.2183,231.03,230.97,23.776884]
[1733756006476,0.81164951,231.02,230.97,23.776884]
[1733756006781,0.81164951,231.02,230.93,23.776884]
[1733756007077,0.81164951,231.02,230.92,23.776884]
[1733756007288,0.81164951,231.02,230.91,21.63100853]
[1733756007458,20.0,231.0,230.88,23.776884]
[1733756007784,20.0,231.0,230.87,21.63100853]
[1733756007785,0.81205564,230.99,230.87,21.63100853]
[1733756007949,1.0823,230.98,230.76,18.3951]
[1733756008151,0.81215598,230.97,230.83,21.63100853]
[1733756008361,0.81215598,230.97,230.85,21.63100853]
[1733756008770,0.81215598,230.97,230.91,21.63100853]
[1733756008979,0.81191882,230.99,230.91,21.63100853]
[1733756009641,0.81191882,230.99,230.89,21.63100853]
[1733756009984,0.81201027,230.98,230.89,21.63100853]
[1733756010281,0.81201923,231.02,230.89,21.63100853]
[1733756010782,0.81201923,231.02,230.91,21.63100853]
[1733756010980,0.81201923,231.02,230.9,0.12549]
[1733756011193,0.81201923,231.02,230.89,21.63100853]
[1733756011385,20.0,231.0,230.86,21.63100853]
[1733756011691,0.81205789,230.99,230.87,23.776884]
[1733756013083,0.81205789,230.99,230.89,23.902374]
[1733756013284,0.81191187,231.02,230.89,23.902374]
[1733756014171,0.81191187,231.02,230.91,0.12549]
[1733756014374,0.81191187,231.02,230.93,0.12549]
[1733756014588,0.81191187,231.02,230.95,0.12549]
[1733756014762,0.81191187,231.02,230.94,21.63100853]
[1733756014763,0.81191187,231.02,230.91,21.63100853]
[1733756015094,0.81191187,231.02,230.92,23.776884]
[1733756015288,0.81191187,231.02,230.92,0.12549]
[1733756015469,0.81191187,231.02,230.89,21.63100853]
[1733756016202,1.0822,231.01,230.9,0.12549]
[1733756016374,0.81203057,231.0,230.9,0.12549]
[1733756017373,0.81189274,231.02,230.92,0.12549]
[1733756017569,0.81189274,231.02,230.94,0.12549]
[1733756018863,0.81189274,231.02,230.94,23.902374]
[1733756020189,6.2183,231.03,230.98,0.12549]
[1733756020391,1.5874,231.04,230.98,23.902374]
[1733756021294,1.5874,231.04,230.98,37.40718471]
[1733756021593,1.5874,231.04,230.98,23.902374]
[1733756021788,1.5874,231.04,230.97,23.776884]
[1733756022176,0.81167591,231.03,230.98,0.12549]
[1733756023083,1.5874,231.04,231.0,13.63030071]
[1733756023276,1.5874,231.04,231.02,0.12549]
[1733756023473,6.4314,231.08,231.02,0.12549]
[1733756023779,0.81152913,231.07,231.02,0.12549]
[1733756024796,0.81152913,231.07,230.99,23.776884]
[1733756025190,0.81152913,231.07,231.02,0.12549]
[1733756025389,6.4314,231.08,231.02,0.12549]
[1733756026198,1.6343,231.09,231.07,23.902374]
[1733756026402,1.6343,231.17,231.09,0.12549]
[1733756026569,0.81122551,231.16,231.05,0.12549]
[1733756026776,0.81122551,231.16,231.05,23.902374]
[1733756027071,0.81122551,231.16,231.06,0.12549]
[1733756028473,20.81122551,231.16,231.06,0.12549]
[1733756028694,20.81122551,231.16,231.03,23.776884]
[1733756029400,0.81122551,231.16,231.06,0.12549]
[1733756029700,20.81122551,231.16,231.06,0.12549]
[1733756030165,20.81122551,231.16,231.02,13.50481071]
[1733756030368,20.81122551,231.16,231.03,23.776884]
[1733756030781,20.81122551,231.16,231.04,0.12549]
[1733756032503,20.81122551,231.16,231.04,13.63030071]
[1733756032889,20.81122551,231.16,231.06,0.12549]
[1733756033686,20.81122551,231.16,231.02,13.50481071]
[1733756033912,20.81122551,231.16,231.03,23.776884]
[1733756034087,20.81122551,231.16,231.04,13.63030071]
[1733756034293,20.81122551,231.16,231.08,0.12549]
[1733756034705,0.81122551,231.16,231.08,13.63030071]
[1733756034881,1.6343,231.17,231.11,0.12549]
[1733756035086,1.89224378,231.25,231.13,23.902374]
[1733756035087,1.5388,231.24,231.13,23.902374]
[1733756035402,0.81107833,231.23,231.13,23.902374]
[1733756036276,20.0,231.22,231.13,23.902374]
[1733756036478,0.81108285,231.21,231.13,23.902374]
[1733756038674,20.0,231.22,231.13,23.902374]
[1733756038873,0.81106498,231.21,231.13,0.12549]
[1733756039076,1.5388,231.24,231.13,23.902374]
[1733756039077,0.81105861,231.23,231.13,23.902374]
[1733756039285,0.81105861,231.23,231.15,0.12549]
[1733756039485,2.34976669,231.24,231.17,0.12549]
[1733756039888,1.5388,231.24,231.17,23.902374]
[1733756040479,1.5388,231.24,231.17,0.12549]
[1733756040692,1.5388,231.24,231.14,13.50481071]
[1733756040901,1.5388,231.24,231.15,23.776884]
[1733756041316,1.5388,231.24,231.16,0.12549]
[1733756041616,1.5388,231.24,231.19,0.12549]
[1733756042521,7.7027,231.3,231.21,0.12549]
[1733756042722,0.81083743,231.29,231.21,0.12549]
[1733756042923,0.81083743,231.29,231.18,13.50481071]
[1733756043428,0.81083743,231.29,231.19,0.12549]
[1733756043724,1.5136,231.3,231.26,13.50481071]
[1733756044022,2.41870059,231.35,231.24,13.50481071]
[1733756045402,2.41870059,231.35,231.25,0.12549]
[1733756045625,2.41870059,231.35,231.24,13.50481071]
[1733756046297,2.41870059,231.35,231.21,23.776884]
[1733756046506,20.0,231.33,231.14,20.0]
[1733756046714,0.81085075,231.32,231.18,13.50481071]
[1733756046922,0.81085075,231.32,231.19,0.12549]
[1733756047522,0.81085075,231.32,231.21,0.12549]
[1733756048424,0.81085075,231.32,231.18,13.50481071]
[1733756048632,1.89155075,231.32,231.16,13.50481071]
[1733756049133,20.0,231.31,231.17,0.12549]
[1733756049307,0.81095586,231.3,231.16,13.50481071]
[1733756049501,1.6329,231.29,231.16,13.50481071]
[1733756049841,0.81101741,231.28,231.16,13.50481071]
[1733756050208,0.81101741,231.28,231.15,0.12549]
[1733756050209,6.6591,231.27,231.15,0.12549]
[1733756050412,0.81102962,231.26,231.15,0.12549]
[1733756051711,20.0,231.24,231.14,13.50481071]
[1733756051913,1.6329,231.22,231.01,6.5214]
[1733756052125,0.81118842,231.21,231.08,13.50481071]
[1733756052322,0.81118842,231.21,231.11,0.12549]
[1733756052706,0.81118842,231.21,231.1,13.50481071]
[1733756053108,0.81118842,231.21,231.08,13.50481071]
[1733756053529,1.0813,231.2,231.09,0.12549]
[1733756053737,0.81126007,231.19,231.08,13.50481071]
[1733756054144,0.81126007,231.19,231.06,13.50481071]
[1733756054630,6.437,231.18,231.04,13.50481071]
[1733756054816,0.81138859,231.17,231.04,13.50481071]
[1733756055221,1.89278859,231.17,231.04,13.50481071]
[1733756055418,1.89278859,231.17,231.05,0.12549]
[1733756057824,1.89278859,231.17,231.04,13.50481071]
[1733756058044,21.0815,231.15,231.0,13.50481071]
[1733756058223,0.81150478,231.14,231.0,13.50481071]
[1733756058622,0.81150478,231.14,231.02,13.50481071]
[1733756059120,0.81150478,231.14,231.06,13.50481071]
[1733756060644,0.81150478,231.14,231.05,0.12549]
[1733756061315,0.81150478,231.14,231.06,13.50481071]
[1733756061516,1.5645,231.16,231.09,0.12549]
[1733756062951,0.81122643,231.15,231.09,0.12549]
[1733756063350,2.37575852,231.16,231.09,0.12549]
[1733756063738,1.5645,231.16,231.09,0.12549]
[1733756063967,1.6206,231.22,231.13,0.12549]
[1733756064174,0.81107332,231.21,231.13,0.12549]
[1733756064551,2.43163294,231.22,231.13,23.902374]
[1733756065062,2.43163294,231.22,231.15,0.12549]
[1733756065469,1.6643,231.28,231.17,23.902374]
[1733756065651,0.81087717,231.27,231.17,23.902374]
[1733756066247,0.81087717,231.27,231.19,0.12549]
[1733756066648,20.0,231.26,231.14,13.50481071]
[1733756066847,0.81102261,231.25,231.15,23.776884]
[1733756067350,0.81102261,231.25,231.16,0.12549]
[1733756068148,0.81097348,231.24,231.16,0.12549]
[1733756068575,0.81097348,231.24,231.12,13.50481071]
[1733756069157,20.0,231.26,231.12,13.50481071]
[1733756069158,0.81111439,231.23,231.12,13.50481071]
[1733756069361,1.5351,231.22,231.07,13.50481071]
[1733756069549,0.81119915,231.21,231.07,13.50481071]
[1733756069754,6.5959,231.2,231.07,13.50481071]
[1733756069953,20.0,231.17,231.03,13.50481071]
[1733756070247,0.81136457,231.16,231.04,0.12549]
[1733756070670,0.81136457,231.16,231.01,13.50481071]
[1733756070870,0.81136457,231.16,231.03,13.50481071]
[1733756071396,0.81136457,231.16,231.06,0.12549]
[1733756071586,0.8112877,231.19,231.1,0.12549]
[1733756072488,6.5959,231.2,231.12,0.12549]
[1733756072672,0.811137,231.19,231.12,0.12549]
[1733756073079,0.811137,231.19,231.09,13.50481071]
[1733756073080,0.811137,231.19,231.11,0.12549]
[1733756073256,0.811137,231.19,231.09,13.50481071]
[1733756074073,0.811137,231.19,231.01,0.48195212]
[1733756074310,0.811137,231.19,231.08,0.12549]
[1733756075098,0.811137,231.19,231.11,13.50481071]
[1733756075602,0.811137,231.19,231.09,0.12549]
[1733756075758,0.811137,231.19,231.09,13.63030071]
[1733756075958,0.811137,231.19,231.09,0.12549]
[1733756078391,0.811137,231.19,231.09,13.63030071]
[1733756078878,6.5959,231.2,231.12,0.12549]
[1733756079081,6.5959,231.2,231.14,0.12549]
[1733756079292,1.5351,231.22,231.14,0.12549]
[1733756079491,1.5351,231.22,231.15,13.50481071]
[1733756079910,1.0809,231.28,231.18,23.902374]
[1733756079911,1.6582,231.28,231.18,23.902374]
[1733756080232,1.6582,231.28,231.2,0.12549]
[1733756080396,0.81083642,231.27,231.2,0.12549]
[1733756080598,0.8108161,231.27,231.2,0.12549]
[1733756080893,1.6582,231.28,231.2,0.12549]
[1733756081437,0.81082429,231.27,231.15,13.50481071]
[1733756082133,0.81082429,231.27,231.12,23.902374]
[1733756082134,1.89172429,231.27,231.09,0.48162267]
[1733756082458,21.89172429,231.27,231.09,13.50481071]
[1733756082626,20.0,231.26,231.09,13.50481071]
[1733756082803,0.81113138,231.25,231.1,0.12549]
[1733756083001,7.7625,231.24,231.1,0.12549]
[1733756083224,0.81115306,231.23,231.1,0.12549]
[1733756084225,20.0,231.21,231.1,0.12549]
[1733756084397,0.81115705,231.2,231.1,0.12549]
[1733756085531,0.81113857,231.23,231.16,0.12549]
[1733756086252,0.81113857,231.23,231.15,0.12549]
[1733756086918,7.7625,231.24,231.15,0.12549]
[1733756088238,0.81095888,231.23,231.15,0.12549]
[1733756089251,0.81095888,231.23,231.1,13.50481071]
[1733756089838,0.81095888,231.23,231.09,0.12549]
[1733756089839,20.0,231.21,231.09,0.12549]
[1733756090059,0.81118053,231.2,231.08,13.50481071]
[1733756090242,0.81118053,231.2,231.09,0.12549]
[1733756090557,0.81118053,231.2,231.08,13.50481071]
[1733756090760,0.81118053,231.2,231.06,13.50481071]
[1733756091330,0.81118053,231.2,231.07,0.12549]
[1733756092325,1.5663,231.15,231.04,13.50481071]
[1733756092628,0.81134536,231.14,231.04,13.50481071]
[1733756092831,0.81134536,231.14,231.05,0.12549]
[1733756093563,0.81134536,231.14,231.01,6.6084]
[1733756093564,0.81134536,231.14,231.02,0.12549]
[1733756093775,0.81134536,231.14,231.02,13.63030071]
[1733756094268,0.81134536,231.14,231.05,0.12549]
[1733756095359,7.38054536,231.14,231.02,13.50481071]
[1733756095578,7.38054536,231.14,231.03,0.12549]
[1733756097769,7.38054536,231.14,231.0,13.50481071]
[1733756098271,20.0,231.11,230.99,13.50481071]
[1733756098501,0.81153261,231.1,230.99,13.50481071]
[1733756098842,0.81153261,231.1,231.0,13.50481071]
[1733756099150,0.81153261,231.1,231.01,13.50481071]
[1733756099348,20.0,231.11,231.04,0.12549]
[1733756099751,0.81141461,231.13,231.04,0.12549]
[1733756100247,0.81141461,231.13,231.03,0.12549]
[1733756100445,0.81141461,231.13,231.0,13.50481071]
[1733756100850,0.81141461,231.13,231.01,13.63030071]
[1733756101071,0.81141461,231.13,231.03,0.12549]
[1733756101271,6.5692,231.14,231.08,0.12549]
[1733756101551,1.5663,231.15,231.1,0.12549]
[1733756102144,1.5663,231.15,231.09,13.50481071]
[1733756102346,1.5663,231.15,231.07,13.50481071]
[1733756102553,1.5663,231.15,231.08,0.12549]
[1733756102749,1.5663,231.15,231.1,13.63030071]
[1733756102971,0.81117561,231.19,231.12,13.63030071]
[1733756103979,0.81117561,231.19,231.13,13.50481071]
[1733756104173,1.6613,231.2,231.17,0.12549]
[1733756104742,1.6613,231.2,231.17,13.50481071]
[1733756104944,2.43775226,231.25,231.17,13.50481071]
[1733756105345,2.43775226,231.25,231.18,0.12549]
[1733756106250,2.43775226,231.25,231.19,0.12549]
[1733756106446,2.43771653,231.25,231.13,13.50481071]
[1733756107181,2.43771653,231.25,231.16,0.12549]
[1733756108079,2.43771653,231.25,231.14,13.50481071]
[1733756108868,23.776884,231.24,231.15,0.12549]
[1733756109065,0.81101917,231.23,231.15,0.12549]
[1733756111885,0.81101917,231.23,231.08,13.50481071]
[1733756111886,23.776884,231.22,231.08,13.50481071]
[1733756112166,1.6242,231.16,231.05,13.50481071]
[1733756112368,0.81129172,231.15,231.04,13.50481071]
[1733756112566,23.776884,231.14,231.04,13.50481071]
[1733756112798,8.2697,231.16,231.08,13.50481071]
[1733756112985,1.6242,231.16,231.11,13.50481071]
[1733756113205,23.776884,231.21,231.14,0.12549]
[1733756113370,8.71626407,231.22,231.14,0.12549]
[1733756113885,7.9049,231.22,231.14,0.12549]
[1733756114278,1.5664,231.22,231.18,0.12549]
[1733756114477,2.42504452,231.27,231.2,0.12549]
[1733756115372,1.614,231.27,231.2,0.12549]
[1733756116340,1.614,231.27,231.18,0.12549]
[1733756116606,0.81080927,231.38,231.22,13.50481071]
[1733756116607,7.9639,231.34,231.22,13.50481071]
[1733756116770,7.9639,231.34,231.24,13.50481071]
[1733756116977,7.9639,231.34,231.26,0.12549]
[1733756117523,1.6439,231.34,231.28,0.12549]
[1733756117813,0.81080927,231.38,231.28,0.12549]
[1733756118601,1.6439,231.39,231.3,0.12549]
[1733756118772,2.45427602,231.39,231.3,0.12549]
[1733756119096,2.45430691,231.39,231.3,0.12549]
[1733756119286,2.45428474,231.39,231.3,0.12549]
[1733756119494,1.6439,231.39,231.3,0.12549]
[1733756119689,2.4543076,231.39,231.24,13.63030071]
[1733756119905,1.6439,231.39,231.28,13.50481071]
[1733756120132,1.6439,231.39,231.3,13.63030071]
[1733756120341,7.783,231.45,231.32,0.12549]
[1733756120503,0.8102793,231.44,231.32,13.75579071]
[1733756120705,0.8102793,231.44,231.34,0.12549]
[1733756120929,7.783,231.45,231.34,0.12549]
[1733756122700,20.0,231.42,231.28,19.98881071]
[1733756122912,20.0,231.42,231.24,10.8112]
[1733756122913,1.33565174,231.41,231.24,13.50481071]
[1733756123213,1.33565174,231.41,231.27,0.12549]
[1733756123418,1.33565174,231.41,231.27,13.63030071]
[1733756123738,1.33565174,231.41,231.29,0.12549]
[1733756123921,1.33565174,231.41,231.29,13.63030071]
[1733756124116,1.33565174,231.41,231.29,13.75579071]
[1733756125039,1.33565174,231.41,231.29,0.25098]
[1733756125643,1.33565174,231.41,231.23,6.2939]
[1733756125644,1.33565174,231.41,231.25,13.50481071]
[1733756125817,1.33565174,231.41,231.26,0.12549]
[1733756126025,1.33565174,231.41,231.25,13.50481071]
[1733756126417,20.0,231.37,231.23,19.79871071]
[1733756126620,0.81057876,231.4,231.25,13.50481071]
[1733756126844,0.81057876,231.4,231.28,0.12549]
[1733756127139,1.33568391,231.41,231.28,0.6059796]
[1733756127347,0.5252676,231.41,231.3,0.12549]
[1733756127675,0.5252676,231.41,231.32,0.12549]
[1733756127837,0.5252676,231.41,231.32,0.25098]
[1733756128160,0.5252676,231.41,231.32,0.7312005]